Cogmind - Beta 13 @@@ ROGUE MODE // 2024.04.07 @ 15:19:01 Player: michaelman Result: Destroyed by X-62 Marksman with Gauss Rifle Performance ------------- Evolutions (3) 1500 Regions Visited (9) 1800 Robots Destroyed (48) 240 Value Destroyed (1567) 1567 Prototype IDs (3) 60 Alien Tech Used (0) 0 Bonus (519) 519 TOTAL SCORE: 5686 Bonus ------- High Alert Combat Kills 19 Entered DSFs 500 Cogmind --------- Core Integrity 0/700 Matter 113/300 Energy 31/100 System Corruption 16% Temperature Cool (0) Movement Core (50) Location -7/DSF Parts ------- > --- POWER (1) -------- (None) > --- PROPULSION (3) --- (None) > --- UTILITY (5) ------ Improved Terrain Scan Processor > --- WEAPON (4) ------- Improved Datajack Hammer > --- INVENTORY (5) ---- Armored Huge Wheel Peak State ------------ > --- POWER ------------ Light Nuclear Core > --- PROPULSION ------- Aluminum Leg Aluminum Leg Aluminum Leg > --- UTILITY ---------- Improved Heat Sink Small Storage Unit Machine Analyzer Advanced Terrain Scan Processor Hardlight Generator > --- WEAPON ----------- Beam Rifle Beam Rifle Particle Gun Heavy Particle Cannon > --- INVENTORY -------- Heavy EM Shotgun Assault Cannon Improved Datajack Hammer [Rating: 30] Favorites ----------- Power Light Nuclear Core Engine Improved Ion Engine Power Core Light Nuclear Core Reactor Antimatter Reactor Propulsion Aluminum Leg Leg Aluminum Leg Wheel Armored Huge Wheel Utility Small Storage Unit Device Structural Scanner Storage Small Storage Unit Processor Terrain Scan Processor Weapon Beam Rifle Energy Gun Beam Rifle Energy Cannon Heavy Particle Cannon Ballistic Gun Heavy Assault Rifle Ballistic Cannon Light Cannon Impact Weapon Hammer Special Melee Weapon Improved Datajack Build | -11 -10 -10 -9 -9 -8 -7 -7 -7 -7 ------- Run | Yrd Mat Min Mat Sto Mat Fac Was Fac DSF Slots Evolved 6 | . . . 2 . 2 2 . . . Power . | . . . . . . . . . . Propulsion 1 | . . . . . 1 . . . . Utility 3 | . . . 2 . . 1 . . . Weapon 2 | . . . . . 1 1 . . . Parts Attached 70 | 5 5 2 10 12 21 3 5 3 4 Power 10 | 1 1 1 1 2 3 . 1 . . Engine 6 | 1 1 . 1 2 1 . . . . Core 3 | . . 1 . . 2 . . . . Reactor 1 | . . . . . . . 1 . . Propulsion 19 | 2 . 1 4 5 6 . . . 1 Treads . | . . . . . . . . . . Leg 18 | 2 . 1 4 5 6 . . . . Wheel 1 | . . . . . . . . . 1 Hover . | . . . . . . . . . . Flight . | . . . . . . . . . . Utility 14 | . 2 . 3 1 2 3 . . 3 Device 8 | . . . 2 1 2 1 . . 2 Storage 1 | . 1 . . . . . . . . Processor 5 | . 1 . 1 . . 2 . . 1 Hackware . | . . . . . . . . . . Protection . | . . . . . . . . . . Artifact . | . . . . . . . . . . Weapon 27 | 2 2 . 2 4 10 . 4 3 . Energy Gun 10 | . . . . 2 6 . 1 1 . Energy Cannon 1 | . . . . . . . 1 . . Ballistic Gun 8 | 2 1 . 2 1 2 . . . . Ballistic Cannon 4 | . . . . 1 1 . 2 . . Launcher . | . . . . . . . . . . Special Weapon . | . . . . . . . . . . Impact Weapon 2 | . . . . . 1 . . 1 . Slashing Weapon . | . . . . . . . . . . Piercing Weapon . | . . . . . . . . . . Special Melee Weapon 2 | . 1 . . . . . . 1 . Unidentified Prototypes 3 | . . . 1 1 . . . 1 . Corrupted Parts 1 | . . . . . . . 1 . . System Corruption 2 | . . . . . . . 2 . . Parts Lost 23 | . . . 1 3 10 . 6 . 3 Power 3 | . . . . 1 2 . . . . Propulsion 5 | . . . . 1 4 . . . . Utility 6 | . . . 1 1 1 . 1 . 2 Weapon 9 | . . . . . 3 . 5 . 1 Highest Loss Streak 7 | . . . 1 2 7 . 5 . 3 To Critical Strikes . | . . . . . . . . . . Average Slot Usage (%) 86 | . 93 100 97 95 86 89 37 23 47 Engine 5 | . 14 4 4 9 4 . . . . Core 3 | . . 9 6 . 3 7 2 . . Leg 20 | . 28 28 22 20 19 23 6 . . Device 8 | . . . 16 10 9 13 4 . 14 Storage 9 | . 10 14 11 11 9 7 3 . . Processor 15 | . 10 14 13 22 14 13 8 . 5 Energy Gun 9 | . . . . 10 15 23 9 7 7 Ballistic Gun 10 | . 24 28 22 3 7 . . . . Ballistic Cannon 2 | . . . . 7 1 . 1 . . Naked Turns 46 | . . . . . . . 45 1 . Heaviest Build 31 | 9 13 13 18 19 22 25 31 7 9 Greatest Support 30 | 20 20 20 20 20 30 30 30 3 28 Greatest Overweight (x) 6 | . . . . 1 6 1 6 2 2 Average Overweight (x) . | . . . . . . . . 2 . Largest Inventory Capacity 8 | 5 8 8 8 8 8 8 8 5 5 Average Capacity 7 | 5 7 8 8 8 8 8 6 5 5 Most Carried 8 | 5 7 8 8 8 8 8 5 3 2 Average Carried 6 | 2 4 7 6 7 6 5 3 . 1 Final Capacity 8 | 5 8 8 8 8 8 8 5 5 5 Final Carried 8 | 2 7 8 8 8 7 5 3 . 2 Class Distribution -------------------- 50% | Mutant 21% | Scavenger-Mutant 21% | Scavenger-Gunner 5% | Scavenger-Tank Dominant Class ---------------- Mutant | -10/Materials Mutant | -10/Mines Scavenger-Mutant | -9/Materials Mutant | -9/Storage Scavenger-Gunner | -8/Materials Scavenger-Tank | -7/Factory Mutant | -7/Waste Mutant | -7/Factory Mutant | -7/DSF Resources | -11 -10 -10 -9 -9 -8 -7 -7 -7 -7 ----------- Run | Yrd Mat Min Mat Sto Mat Fac Was Fac DSF Matter Collected 1239 | 244 77 107 191 283 327 . 1 . 9 Remotely . | . . . . . . . . . . Salvage Created 2005 | . 77 127 340 610 637 . 214 . . Parts 119 | . 7 12 27 35 35 . 3 . . Haulers Intercepted 1 | . . . . 1 . . . . . Recyclers Shooed 3 | . . . . 1 2 . . . . Parts Field Recycled . | . . . . . . . . . . Retrieved Matter . | . . . . . . . . . . Parts Self-Destructed . | . . . . . . . . . . Prevented . | . . . . . . . . . . Kills | -11 -10 -10 -9 -9 -8 -7 -7 -7 -7 ------- Run | Yrd Mat Min Mat Sto Mat Fac Was Fac DSF Combat Hostiles Destroyed 43 | . 2 5 7 15 13 . 1 . . Guns 31 | . 2 5 7 6 11 . . . . Cannons 11 | . . . . 9 1 . 1 . . Classes Destroyed 9 | . 1 1 1 4 1 . 1 . . Hauler 1 | . . . . 1 . . . . . Recycler 2 | . . . . 1 1 . . . . Watcher 2 | . . . . 1 1 . . . . Swarmer 9 | . . 3 . 4 2 . . . . Grunt 22 | . 2 2 4 5 9 . . . . Brawler 1 | . . . . 1 . . . . . Duelist 1 | . . . . . 1 . . . . Sentry 9 | . . . 3 5 1 . . . . Compactor 1 | . . . . . . . 1 . . Best Kill Streak 4 | . 2 3 3 4 4 . 1 . . Combat Bots Only 4 | . 2 3 3 4 4 . 1 . . Max Kills in Single Turn 2 | . 1 1 1 2 1 . 1 . . Gunslinging . | . . . . . . . . . . Exploded . | . . . . . . . . . . Melee . | . . . . . . . . . . Uniques/NPCs Destroyed . | . . . . . . . . . . Combat | -11 -10 -10 -9 -9 -8 -7 -7 -7 -7 -------- Run | Yrd Mat Min Mat Sto Mat Fac Was Fac DSF Hostile Shots Fired 309 | . 22 31 38 65 115 . 11 . 27 Missed 78 | . 8 8 8 20 29 . 1 . 4 Damage Taken 3725 | . 160 271 404 566 1289 . 435 . 600 Core 1218 | . 57 19 93 105 230 . 402 . 312 Absorbed by Shields 90 | . . . . . . . . . 90 Regen/Repaired (Parts) 82 | . . . . 82 . . . . . Core Remaining (%) 69 | 100 . 69 . 50 58 . . . . Volleys Fired 147 | . 15 14 19 47 39 . 13 . . Largest 4 | . 2 2 2 2 3 . 4 . . Hottest 252 | . 40 40 43 91 177 . 252 . . Shots Fired 317 | . 30 28 38 93 91 . 37 . . Gun 255 | . 30 28 38 53 80 . 26 . . Cannon 62 | . . . . 40 11 . 11 . . Launcher . | . . . . . . . . . . Special . | . . . . . . . . . . Kinetic 196 | . 30 28 38 46 47 . 7 . . Thermal 121 | . . . . 47 44 . 30 . . Explosive . | . . . . . . . . . . Electromagnetic . | . . . . . . . . . . Robot Hit Streak 16 | . 6 5 9 16 11 . 9 . . Robot Miss Streak 4 | . 3 3 1 4 4 . 1 . . Penetration Max . | . . . . . . . . . . Secondary Targets 5 | . 1 2 1 . 1 . . . . Max Gunslinging Chain 1 | . 1 1 1 . 1 . . . . Shots Hit Robots 214 | . 23 15 29 62 55 . 30 . . Core Hits 84 | . 4 9 15 24 28 . 4 . . Critical Kills 1 | . . 1 . . . . . . . Critical Parts Destroyed 1 | . . . . . 1 . . . . Critical Strikes 17 | . . 1 . 10 6 . . . . Burn 9 | . . . . 4 5 . . . . Destroy 1 | . . 1 . . . . . . . Blast 6 | . . . . 6 . . . . . Smash 1 | . . . . . 1 . . . . Melee Attacks 8 | . 4 . . . 4 . . . . Impact 4 | . . . . . 4 . . . . Slashing . | . . . . . . . . . . Piercing . | . . . . . . . . . . Sneak Attacks 3 | . 3 . . . . . . . . Combat Hostiles . | . . . . . . . . . . Follow-up Attacks . | . . . . . . . . . . Damage Inflicted 3284 | . 174 154 377 1057 977 . 545 . . Guns 2402 | . 174 154 377 583 827 . 287 . . Cannons 800 | . . . . 474 68 . 258 . . Explosions . | . . . . . . . . . . Melee 82 | . . . . . 82 . . . . Ramming . | . . . . . . . . . . Kinetic 1878 | . 174 154 377 569 446 . 158 . . Thermal 1324 | . . . . 488 449 . 387 . . Explosive . | . . . . . . . . . . Electromagnetic . | . . . . . . . . . . Impact 82 | . . . . . 82 . . . . Slashing . | . . . . . . . . . . Piercing . | . . . . . . . . . . Highest Corruption 16 | . . . . 1 . . 16 16 16 Average Corruption 7 | . . . . 1 . . 9 16 16 Corruption Purged . | . . . . . . . . . . Corruption Blocked . | . . . . . . . . . . Effects 12 | . . . . 2 . . 7 . 3 Message Errors 1 | . . . . 1 . . . . . Matter Fused 4 | . . . . . . . 2 . 2 Heat Flow Errors 2 | . . . . . . . 1 . 1 Parts Fused 1 | . . . . . . . 1 . . Data Loss (minor) 3 | . . . . . . . 3 . . Weapon Failures 1 | . . . . 1 . . . . . Overload Shots . | . . . . . . . . . . Overflow Damage 27 | . . . . . 27 . . . . Projectiles . | . . . . . . . . . . Explosions . | . . . . . . . . . . Melee 27 | . . . . . 27 . . . . Knockbacks 4 | . . . . 4 . . . . . Impact . | . . . . . . . . . . Kinetic 4 | . . . . 4 . . . . . Secondary . | . . . . . . . . . . Self-Inflicted Damage . | . . . . . . . . . . Shots . | . . . . . . . . . . Rammed . | . . . . . . . . . . Targets Rammed 1 | . . 1 . . . . . . . Kicked 1 | . . 1 . . . . . . . Crushed . | . . . . . . . . . . Highest Temperature 344 | . 12 25 9 115 91 . 344 . 76 Average Temperature 51 | . 7 12 4 41 34 . 134 . 49 Received Heat Transfer 1248 | . 84 111 198 213 576 . . . 66 Effects 1 | . . . . . . . 1 . . Interference 1 | . . . . . . . 1 . . Siege Activations . | . . . . . . . . . . Robots Corrupted . | . . . . . . . . . . Combat Hostiles . | . . . . . . . . . . Parts Fried . | . . . . . . . . . . Impact Corruptions 1 | . . . . . 1 . . . . Robots Melted 1 | . . . . . 1 . . . . Combat Hostiles 1 | . . . . . 1 . . . . Parts Melted 4 | . . . . 3 1 . . . . Heat Transferred 3700 | . . . . 1443 1406 . 851 . . Parts Sabotaged . | . . . . . . . . . . Parts Stolen . | . . . . . . . . . . Parts Stripped . | . . . . . . . . . . Power Chain Reactions . | . . . . . . . . . . Alert | -11 -10 -10 -9 -9 -8 -7 -7 -7 -7 ------- Run | Yrd Mat Min Mat Sto Mat Fac Was Fac DSF Peak Influence 406 | . 83 181 295 406 363 121 42 . 18 Initial 170 | . . 31 70 124 170 121 42 . 3 Average 182 | . 28 129 189 273 256 121 11 . 5 Maximum Alert Level 2 | . . . 1 2 1 . . . . Low Security (%) 53 | 100 100 100 46 29 14 100 100 100 100 Level 1 42 | . . . 53 53 85 . . . . Level 2 4 | . . . . 17 . . . . . Level 3 . | . . . . . . . . . . Level 4 . | . . . . . . . . . . Level 5 . | . . . . . . . . . . High Security . | . . . . . . . . . . Max Security . | . . . . . . . . . . Squads Dispatched 5 | . 1 . 1 1 1 . . . 1 Investigation 3 | . 1 . 1 1 . . . . . Extermination . | . . . . . . . . . . Reinforcement 2 | . . . . . 1 . . . 1 Assault . | . . . . . . . . . . Garrison . | . . . . . . . . . . Intercept . | . . . . . . . . . . Searches Triggered . | . . . . . . . . . . Construction Impeded . | . . . . . . . . . . Haulers Reinforced . | . . . . . . . . . . Active Scanning Responses . | . . . . . . . . . . Cargo Convoy Interrupts . | . . . . . . . . . . Stealth | -11 -10 -10 -9 -9 -8 -7 -7 -7 -7 --------- Run | Yrd Mat Min Mat Sto Mat Fac Was Fac DSF Distress Signals 5 | . . . 1 2 2 . . . . Communications Jammed . | . . . . . . . . . . Distress Signals . | . . . . . . . . . . Times Spotted 73 | . 4 7 8 23 21 . 6 . 4 Peak Tracking Total 8 | . 3 3 4 6 8 . 5 . 3 Tactical Retreats 7 | . . 1 . 4 1 . . . 1 Traps | -11 -10 -10 -9 -9 -8 -7 -7 -7 -7 ------- Run | Yrd Mat Min Mat Sto Mat Fac Was Fac DSF Traps Triggered 8 | . 1 . 1 1 1 1 . . 3 Indirectly . | . . . . . . . . . . Trap Hack Attempts . | . . . . . . . . . . Triggered . | . . . . . . . . . . Disarmed . | . . . . . . . . . . Reprogrammed . | . . . . . . . . . . Reused . | . . . . . . . . . . Traps Extracted . | . . . . . . . . . . Installed . | . . . . . . . . . . Triggered . | . . . . . . . . . . Machines | -11 -10 -10 -9 -9 -8 -7 -7 -7 -7 ---------- Run | Yrd Mat Min Mat Sto Mat Fac Was Fac DSF Machines Disabled . | . . . . . . . . . . Max in Single Turn . | . . . . . . . . . . Machines Repaired . | . . . . . . . . . . Machines Dismantled . | . . . . . . . . . . Machines Sabotaged . | . . . . . . . . . . Overloaded Fab Kills . | . . . . . . . . . . Hacking | -11 -10 -10 -9 -9 -8 -7 -7 -7 -7 --------- Run | Yrd Mat Min Mat Sto Mat Fac Was Fac DSF Machines Accessed 5 | . 1 . . 3 . . . 1 . Terminals 4 | . 1 . . 2 . . . 1 . Fabricators . | . . . . . . . . . . Repair Stations 1 | . . . . 1 . . . . . Recycling Units . | . . . . . . . . . . Scanalyzers . | . . . . . . . . . . Garrison Access . | . . . . . . . . . . Total Hacks 9 | . 1 . . 7 . . . 1 . Successful 5 | . 1 . . 3 . . . 1 . Failed 4 | . . . . 4 . . . . . Catastrophic . | . . . . . . . . . . Database Lockouts . | . . . . . . . . . . Manual 2 | . 1 . . 1 . . . . . Terminals 6 | . 1 . . 4 . . . 1 . Fabricators . | . . . . . . . . . . Repair Stations 3 | . . . . 3 . . . . . Recycling Units . | . . . . . . . . . . Scanalyzers . | . . . . . . . . . . Garrison Access . | . . . . . . . . . . Terminal Hacks 3 | . 1 . . 1 . . . 1 . Open Door 1 | . . . . 1 . . . . . Open DSF 1 | . . . . . . . . 1 . Maintenance Status 1 | . 1 . . . . . . . . Fabricator Hacks . | . . . . . . . . . . Repair Station Hacks 2 | . . . . 2 . . . . . Scan Component 1 | . . . . 1 . . . . . Repair 1 | . . . . 1 . . . . . Recycling Unit Hacks . | . . . . . . . . . . Scanalyzer . | . . . . . . . . . . Garrison Access Hacks . | . . . . . . . . . . Unauthorized Hacks . | . . . . . . . . . . Terminals . | . . . . . . . . . . Fabricators . | . . . . . . . . . . Repair Stations . | . . . . . . . . . . Recycling Units . | . . . . . . . . . . Scanalyzers . | . . . . . . . . . . Garrison Access . | . . . . . . . . . . Data Cores Recovered . | . . . . . . . . . . Used . | . . . . . . . . . . Hacking Detections 4 | . . . . 4 . . . . . Full Trace Events 2 | . . . . 2 . . . . . Feedback Events . | . . . . . . . . . . Feedback Blocked . | . . . . . . . . . . Robot Schematics Acquired . | . . . . . . . . . . Robots Built . | . . . . . . . . . . Authchips . | . . . . . . . . . . Time . | . . . . . . . . . . Total Robot Build Rating . | . . . . . . . . . . Part Schematics Acquired . | . . . . . . . . . . Parts Built . | . . . . . . . . . . Authchips . | . . . . . . . . . . Time . | . . . . . . . . . . Total Part Build Rating . | . . . . . . . . . . Parts Repaired 1 | . . . . 1 . . . . . Time 32 | . . . . 32 . . . . . Parts Recycled . | . . . . . . . . . . Recycled Matter . | . . . . . . . . . . Retrieved Matter . | . . . . . . . . . . Retrieved Components . | . . . . . . . . . . Parts Scanalyzed . | . . . . . . . . . . Part Schematics Acquired . | . . . . . . . . . . Parts Damaged . | . . . . . . . . . . Bothacking | -11 -10 -10 -9 -9 -8 -7 -7 -7 -7 ------------ Run | Yrd Mat Min Mat Sto Mat Fac Was Fac DSF Used RIF Installer . | . . . . . . . . . . Robots Hacked 3 | . 3 . . . . . . . . Non-combat 3 | . 3 . . . . . . . . Combat . | . . . . . . . . . . Robot Hacks Applied 3 | . 3 . . . . . . . . parse_system 2 | . 2 . . . . . . . . no_distress 1 | . 1 . . . . . . . . Relay Couplers Released . | . . . . . . . . . . Fabnet Peak Effective % . | . . . . . . . . . . Robots Rewired . | . . . . . . . . . . Allies Hacked . | . . . . . . . . . . Hacks Repelled . | . . . . . . . . . . Allies | -11 -10 -10 -9 -9 -8 -7 -7 -7 -7 -------- Run | Yrd Mat Min Mat Sto Mat Fac Was Fac DSF Total Allies 1 | . . . . . . . 1 . . Largest Group 1 | . . . . . . . 1 . . Highest-Rated Group 31 | . . . . . . . 31 . . Highest-Rated Ally 31 | . . . . . . . 31 . . Total Orders . | . . . . . . . . . . Ally Attacks 12 | . . . . . . . 12 . . Total Damage 169 | . . . . . . . 169 . . Kills . | . . . . . . . . . . Allies Corrupted . | . . . . . . . . . . Allies Melted . | . . . . . . . . . . Intel | -11 -10 -10 -9 -9 -8 -7 -7 -7 -7 ------- Run | Yrd Mat Min Mat Sto Mat Fac Was Fac DSF Robot Analysis Total . | . . . . . . . . . . Derelict Logs Recovered . | . . . . . . . . . . Drone Launches . | . . . . . . . . . . Drone Recoveries . | . . . . . . . . . . Exploration | -11 -10 -10 -9 -9 -8 -7 -7 -7 -7 ------------- Run | Yrd Mat Min Mat Sto Mat Fac Was Fac DSF Turns Passed 2678 | 52 227 301 275 702 711 107 197 7 99 Spaces Moved 1567 | 46 135 209 143 343 356 69 195 3 68 Core 230 | 21 . . . . 6 . 172 3 28 Treads . | . . . . . . . . . . Legs 1297 | 25 135 209 143 343 350 69 23 . . Wheels 40 | . . . . . . . . . 40 Hover . | . . . . . . . . . . Flight . | . . . . . . . . . . Fastest Speed 50 | 50 120 120 120 120 120 120 50 150 100 Average Speed 120 | 88 120 120 120 123 141 150 76 150 120 Slowest Speed 350 | 120 120 120 120 190 350 190 350 150 150 Overloaded Moves . | . . . . . . . . . . Propulsion Burnouts . | . . . . . . . . . . Robots Hopped . | . . . . . . . . . . Cave-ins Triggered . | . . . . . . . . . . Exploration Rate (%) 33 | 4 28 34 13 63 30 2 69 . 54 Regions Visited 9 Branch Regions 2 Pre-discovered Areas 1 | . . 1 . . . . . . . Known Exits Taken 1 | . . . . . . . . 1 . Unknown Exits Taken 6 | 1 1 1 1 1 1 . . . . Scrap Searched . | . . . . . . . . . . Spaces Dug . | . . . . . . . . . . Terrain Destroyed . | . . . . . . . . . . Melee . | . . . . . . . . . . Projectile . | . . . . . . . . . . AOE . | . . . . . . . . . . Terrain Rammed . | . . . . . . . . . . Walls Destroyed . | . . . . . . . . . . Machines Disabled . | . . . . . . . . . . Actions | -11 -10 -10 -9 -9 -8 -7 -7 -7 -7 --------- Run | Yrd Mat Min Mat Sto Mat Fac Was Fac DSF Total 2059 | 57 170 237 211 525 480 74 214 6 85 Wait 186 | . 3 1 23 116 43 . . . . Move 1559 | 45 134 208 142 342 355 69 194 2 68 Hop . | . . . . . . . . . . Pick Up 47 | 7 8 5 9 2 9 1 1 . 5 Fast Attach 15 | . . . . 3 9 . 3 . . Attach 31 | 5 2 . 3 1 8 3 2 3 4 Detach . | . . . . . . . . . . Swap 24 | . 3 2 7 8 4 . . . . Drop 34 | . 1 6 8 6 9 1 1 1 1 Fire 147 | . 15 14 19 47 39 . 13 . . Melee 8 | . 4 . . . 4 . . . . Ram . | . . . . . . . . . . Kick 1 | . . 1 . . . . . . . Crush . | . . . . . . . . . . Escape Stasis 7 | . . . . . . . . . 7 Rewire . | . . . . . . . . . . Trap . | . . . . . . . . . . Miscellaneous . | . . . . . . . . . . Route ------- -11/Scrapyard -10/Materials -10/Mines -9/Materials -9/Storage -8/Materials -7/Factory -7/Waste -7/Factory -7/DSF History --------- Turn | Location | Event 10 | -11/Scrapyard | Discovered new exit (range 15) 53 | -11/Scrapyard | Entered Materials 262 | -10/Materials | Discovered new exit (range 10) 280 | -10/Materials | Entered Mines 281 | -10/Mines | Learned location of Storage (-9) 309 | -10/Mines | Build established: Mutant 339 | -10/Mines | Discovered new exit (range 16) 478 | -10/Mines | Found a damaged Exp. Sensor Array with a note attached 481 | -10/Mines | Found Prototype Device 581 | -10/Mines | Entered Materials 581 | -9/Materials | Evolved 2 slots: Utility x2 584 | -9/Materials | Identified Exp. Sensor Array 729 | -9/Materials | Discovered new exit (range 8) 856 | -9/Materials | Entered Storage 904 | -9/Storage | Repaired Hvy. Assault Rifle? 989 | -9/Storage | Build established: Scavenger-Mutant 1549 | -9/Storage | Discovered new exit (range 9) 1558 | -9/Storage | Entered Materials 1558 | -8/Materials | Evolved 2 slots: Propulsion x1, Weapon x1 2036 | -8/Materials | Lost 7 parts (1p3n1u2w) 2055 | -8/Materials | Discovered new exit (range 16) 2269 | -8/Materials | Entered Factory 2269 | -7/Factory | Evolved 2 slots: Utility x1, Weapon x1 2376 | -7/Factory | Sucked down chute 2376 | -7/Factory | Entered Waste 2377 | -7/Waste | Met a frightened Derelict 2391 | -7/Waste | EMP discharged 2404 | -7/Waste | Spotted C-40 Crusher 2427 | -7/Waste | Crushed by Compactor (1 part destroyed, 2 dropped) 2434 | -7/Waste | Crushed by Compactor (1 part destroyed, 1 dropped) 2436 | -7/Waste | Spotted C-40 Crusher 2437 | -7/Waste | Crushed by Compactor (1 part destroyed, 2 dropped) 2437 | -7/Waste | Destroyed C-40 Crusher 2461 | -7/Waste | Crushed by Compactor (1 part destroyed, 1 dropped) 2464 | -7/Waste | Crushed by Compactor (1 part destroyed, 2 dropped) 2491 | -7/Waste | EMP discharged 2491 | -7/Waste | System corruption reached 10% 2493 | -7/Waste | Spotted C-40 Crusher 2495 | -7/Waste | Lost 5 parts (1u4w) 2501 | -7/Waste | Spotted C-40 Crusher 2506 | -7/Waste | Crushed by Compactor (1 part destroyed, 2 dropped) 2507 | -7/Waste | Spotted C-40 Crusher 2514 | -7/Waste | Spotted C-40 Crusher 2524 | -7/Waste | Core integrity fell below 50% 2544 | -7/Waste | Discovered new exit (range 16) 2573 | -7/Waste | Entered Factory 2580 | -7/Factory | Identified exit to DSF 2580 | -7/Factory | Entered DSF 2630 | -7/DSF | Additional patrols routed to DSF 2677 | -7/DSF | Core integrity fell below 20% 2679 | -7/DSF | Destroyed by X-62 Marksman with Gauss Rifle Last Messages --------------- 02672_ Field strength at 76. 02673_ Penetrated by Slug. 02673_ Imp. Terrain Scanner destroyed. 02673_ Field strength at 41. 02674_ Dropped Arm. Huge Wheel. 02675_ Field strength at 35. 02675_ Penetrated by Slug. 02676_ System corrupted: Heat flow error (+124). 02676_ Stasis field depleted. 02676_ Knocked back. 02676_ Triggered Stasis Trap. 02676_ A bubble of rippling energy engulfs the area. 02676_ Field strength at 94. 02676_ Field strength at 88. 02677_ Field strength at 82. 02678_ Field strength at 76. 02678_ Knocked back. 02678_ Penetrated by Slug. 02678_ Critical hit (Burn: +37). 02679_ Penetrated by Slug. Map ----- +----------------------------------------------------+ | | | | | | | | | | | | | | | | | | | ????????????????#????????#????#?????????##?????? | | ??????????????????????#???????##???#???#???????? | | ????????????????????????????????#???#??????????? | | ?????????????#?##??#???##?????#??###??#?#?#??#?? | | ???????????????##?????##????????##???#""#?????#? | | ??????????????#??###???#?#?#???##????#"#?????#?? | | ??????????????#?????#########?#?????##"####??#?? | | ?????????????#?????## #########"""""#????# | | ???????????????????## #!!!#! ##"""""#?##?? | | ????????????###?#?#?# ""##"#?? | | ????????????#?#####?# """""??# | | ??????????#???#??###### ###!!!#! ## ""####?? | | ??????????????#?????### ###!!!#!!### ###?###? | | ??????????????#??#??#// ########## ####?#?? | | ??????????#??????#??#// #????#?#! ##?#??? | | ????????????#???????#//% #?##?#?#!! ###?#?# | | ?????????????????#??###@ ###??#??#### ##?#?##? | | ????????????????????#!!^ %!!####?### ##?#??# | | ???????#??????????#?#!! =^!!##??##?# ##?#??? | | ????????????????????#!! ax!!#??##??# ##???## | | ??????????????????##### x;####?###### ####??#? | | ??????????????????????# ;##!!!# ## ###?## | | ?????????????????? ??#a ##!!!# ## #?#??? | | ?????????????? ?????? Ha ^ #??### | | ?????????????? ????? % #??##? | | ???????????????????? %^ #?#??? | | ????????????????????##a ##!!!#== ## !!#??##? | | ?????????????????????## a###!!!"== ## !!#?#??? | | ??????????????????????# #?###############??#?? | | ????????????????#?????! ! ??????#?#???#?#????? | | ??????????????????????! !??##?#???#???#??#?#?? | | ??????????????????????! !????????#??#???##???? | | ????????????????#???#?# #???#??????#?????###?? | | ?????????????????????? ??##???#?###????#?#?## | | ???????????????????????????????????###???##??#?# | | ????????????????????????? ??#????#????#??????### | | ????????????????????????? ??????????#??#???????# | | ??????????????????????????#????????????#???????? | | ???????????????????????????????????????????????? | | ??????????????????????????????????#???#????????? | | ????????????????????????????????#???##?????????? | +----------------------------------------------------+ Best States ------------- Heat Dissipation 48 Energy Generation 14 Energy Capacity 265 Matter Stores 300 Matter Capacity 300 Sight Range 16 Robot Scan Range 20 Terrain Scan Range 16 Terrain Scan Density 210 Evasion (%) 55 Targeting Accuracy 6 Item Schematics ----------------- None Robot Schematics ------------------ None Fabricated ------------ Nothing Alien Tech Used ----------------- None Achievements -------------- Omniscient Cartographer Challenges ------------ None Game ------ Seed PulseTrackerNanoactuators Manual? 0 Play Time 00:34:59 Cumulative 7.4 hours Start 2024.04.07 @ 14:43:46 End 2024.04.07 @ 15:19:01 Sessions 1 Manual Loads 0 Difficulty Rogue Special Mode None Game No. 14 Rogue 14 Adventurer 0 Explorer 0 Win Type - Total 0 Types 0/0/0/0/0/0/0/0/0 Lore% 8 Gallery% 11 Achievement% 13 Wizard Run 0 Options --------- Layout 0 ASCII 0 Keyboard 0 Movement Mouse Keybinds 0 Fullscreen 1 Font 18/SmallcapsGlow Map View 38x25 Zoom Use 100% Tactical HUD 1 Map Filters NONE Filters NONE Steam 1 RUN: 685b25d8-9cd7-4b73-9911-e93b62dfe11e